bitfinex/quotes_SOLUSD_20241115
["timestamp","ask_amount","ask_price","bid_price","bid_amount"]
[1731713303942,13.69581672,219.57,219.5,13.69581672]
[1731713303943,3.1881,219.56,219.5,13.69581672]
[1731713304144,3.1881,219.56,219.49,13.69581672]
[1731713304338,3.1881,219.56,219.5,0.12549]
[1731713304654,3.1881,219.56,219.5,13.82130672]
[1731713305257,3.1881,219.56,219.5,0.12549]
[1731713305838,13.69581672,219.56,219.49,0.12549]
[1731713306040,13.69581672,219.56,219.49,13.69581672]
[1731713306239,13.69581672,219.56,219.5,0.12549]
[1731713306962,8.76389295,219.56,219.5,0.12549]
[1731713307739,8.76389295,219.56,219.48,8.76389295]
[1731713307740,8.76389295,219.56,219.49,0.12549]
[1731713307960,3.1883,219.55,219.49,0.12549]
[1731713310748,3.1883,219.55,219.5,0.12549]
[1731713312462,8.76389295,219.57,219.5,0.12549]
[1731713313445,27.0908,219.63,219.5,0.12549]
[1731713313446,8.76389295,219.55,219.5,0.12549]
[1731713313753,8.76389295,219.55,219.49,0.12549]
[1731713313962,3.1884,219.54,219.49,8.76389295]
[1731713314362,3.1884,219.54,219.5,0.12549]
[1731713314758,8.76389295,219.56,219.5,0.12549]
[1731713314947,3.1883,219.55,219.5,0.12549]
[1731713315863,3.1883,219.55,219.5,8.88938295]
[1731713316169,8.76389295,219.57,219.5,8.88938295]
[1731713316170,3.1881,219.56,219.5,8.88938295]
[1731713318274,7.9695,219.59,219.5,8.88938295]
[1731713318462,8.76389295,219.57,219.5,8.88938295]
[1731713319773,7.9695,219.59,219.5,8.88938295]
[1731713319944,7.9695,219.59,219.52,8.76389295]
[1731713320144,7.9695,219.59,219.53,8.76389295]
[1731713321469,7.9695,219.59,219.47,0.12549]
[1731713321470,19.92109295,219.59,219.52,0.12549]
[1731713322045,8.76389295,219.57,219.51,0.12549]
[1731713322248,8.76389295,219.54,219.47,9.01487295]
[1731713322566,20.0,219.58,219.46,8.76389295]
[1731713322763,8.76389295,219.53,219.46,8.76389295]
[1731713323549,3.1887,219.52,219.46,8.76389295]
[1731713324151,11.95259295,219.52,219.42,4.5572]
[1731713324463,8.76389295,219.49,219.35,92.8944]
[1731713324653,8.76389295,219.47,219.4,8.76389295]
[1731713325359,8.76389295,219.48,219.41,8.76389295]
[1731713325562,3.1895,219.47,219.41,8.76389295]
[1731713326169,8.76389295,219.46,219.37,11.396]
[1731713326472,8.76389295,219.44,219.37,20.15989295]
[1731713327254,8.76389295,219.45,219.38,8.76389295]
[1731713327646,3.1899,219.44,219.39,0.12549]
[1731713328584,8.76389295,219.44,219.38,0.12549]
[1731713329675,3.19,219.43,219.38,0.12549]
[1731713330257,11.95389295,219.43,219.38,0.12549]
[1731713331272,11.95389295,219.43,219.38,0.25098]
[1731713337776,8.76389295,219.44,219.38,0.25098]
[1731713338173,8.76389295,219.43,219.36,32.79175695]
[1731713339669,3.1902,219.42,219.36,37.35035695]
[1731713340266,3.1902,219.42,219.37,8.76389295]
[1731713340464,3.1902,219.42,219.38,0.25098]
[1731713341374,8.76389295,219.44,219.38,0.25098]
[1731713341584,3.19,219.43,219.38,0.25098]
[1731713344364,20.0,219.5,219.38,0.25098]
[1731713344569,8.76389295,219.44,219.38,0.25098]
[1731713345580,8.76389295,219.45,219.38,9.01487295]
[1731713345887,8.76389295,219.45,219.39,0.12549]
[1731713346770,3.1899,219.44,219.39,0.12549]
[1731713346962,3.1899,219.44,219.39,9.01487295]
[1731713347170,8.76389295,219.47,219.41,0.25098]
[1731713347777,8.76389295,219.48,219.41,9.01487295]
[1731713348173,3.1895,219.47,219.41,9.01487295]
[1731713348474,3.1889,219.51,219.43,0.12549]
[1731713348788,8.76389295,219.49,219.43,0.12549]
[1731713349787,3.1893,219.48,219.43,0.12549]
[1731713350493,11.95319295,219.48,219.42,0.12549]
[1731713350695,8.77035795,219.48,219.42,0.12549]
[1731713351100,8.77035795,219.46,219.42,0.12549]
[1731713351288,8.77035795,219.44,219.37,8.77035795]
[1731713351591,8.27035795,219.43,219.36,13.32895795]
[1731713351891,0.09367462,219.5,219.36,4.5586]
[1731713351892,8.77035795,219.44,219.36,4.5586]
[1731713352189,8.77035795,219.44,219.37,8.77035795]
[1731713352371,3.19,219.43,219.37,8.77035795]
[1731713352789,3.19,219.43,219.38,0.25098]
[1731713353189,3.19,219.43,219.37,0.25098]
[1731713353488,8.77035795,219.43,219.37,0.25098]
[1731713354876,11.96055795,219.42,219.37,0.12549]
[1731713355090,8.77035795,219.38,219.25,0.1]
[1731713355282,8.77035795,219.34,219.26,11.4019]
[1731713355479,8.77035795,219.35,219.28,8.86403257]
[1731713355679,8.77035795,219.36,219.29,8.77035795]
[1731713355894,3.1902,219.42,219.3,8.77035795]
[1731713355895,8.77035795,219.37,219.3,8.77035795]
[1731713356391,11.96135795,219.37,219.3,8.77035795]
[1731713357096,11.96135795,219.37,219.3,13.33025795]
[1731713357299,11.96135795,219.37,219.31,0.25098]
[1731713357499,11.97007689,219.37,219.31,0.25098]
[1731713357676,8.77907689,219.36,219.31,0.25098]
[1731713358631,20.0,219.41,219.31,0.25098]
[1731713358783,8.77907689,219.37,219.31,0.25098]
[1731713358984,20.0,219.41,219.31,9.03005689]
[1731713359186,8.77907689,219.37,219.31,0.25098]
[1731713359386,8.77907689,219.35,219.31,0.25098]
[1731713359600,8.77907689,219.32,219.23,0.4344254]
[1731713359772,8.77907689,219.28,219.23,0.4344254]
[1731713360484,8.77907689,219.29,219.23,0.4344254]
[1731713360686,3.1921,219.29,219.23,0.4344254]
[1731713361078,3.1921,219.29,219.24,0.25098]
[1731713362697,3.1921,219.29,219.24,9.03005689]
[1731713363290,8.77907689,219.32,219.24,9.03005689]
[1731713363601,3.1918,219.31,219.24,9.03005689]
[1731713364323,11.97087689,219.31,219.24,9.03005689]
[1731713365291,23.1911,219.36,219.24,9.03005689]
[1731713365487,8.77907689,219.31,219.24,9.03005689]
[1731713366784,3.1919,219.3,219.24,9.03005689]
[1731713368095,3.1912,219.35,219.3,0.25098]
[1731713368406,3.1912,219.35,219.32,0.12549]
[1731713368584,3.1912,219.35,219.32,8.90456689]
[1731713368991,8.77907689,219.39,219.32,8.90456689]
[1731713369197,3.1908,219.38,219.32,8.90456689]
[1731713369999,3.1908,219.38,219.32,0.12549]
[1731713373001,3.1899,219.44,219.35,8.77907689]
[1731713373202,11.96897689,219.44,219.37,8.77907689]
[1731713373412,3.1899,219.44,219.39,0.12549]
[1731713373584,3.1899,219.44,219.39,0.25098]
[1731713375405,8.77907689,219.46,219.39,0.25098]
[1731713375406,8.77907689,219.45,219.39,0.25098]
[1731713375590,8.77907689,219.42,219.32,15.9581]
[1731713375908,8.77907689,219.41,219.33,8.77907689]
[1731713376605,8.77907689,219.39,219.32,11.3988]
[1731713376806,8.77907689,219.39,219.32,20.17787689]
[1731713377193,8.77907689,219.4,219.33,0.12549]
[1731713377702,3.1906,219.39,219.33,0.12549]
[1731713378495,3.1906,219.39,219.33,0.25098]
[1731713379602,8.77907689,219.39,219.33,0.25098]
[1731713381325,3.1908,219.38,219.33,0.25098]
[1731713381808,3.1908,219.38,219.33,0.12549]
[1731713382017,11.96987689,219.38,219.31,0.25098]
[1731713382498,11.96987689,219.38,219.31,9.03005689]
[1731713384014,7.9754,219.43,219.32,4.5595]
[1731713384315,8.77907689,219.41,219.35,0.12549]
[1731713385186,3.1905,219.4,219.35,0.12549]
[1731713385391,11.96957689,219.4,219.33,9.03005689]
[1731713386324,11.96957689,219.4,219.33,0.25098]
[1731713386609,8.77907689,219.39,219.33,0.25098]
[1731713386813,8.77907689,219.37,219.33,0.12549]
[1731713386998,8.77907689,219.37,219.31,0.25098]
[1731713387719,8.77907689,219.38,219.31,9.03005689]
[1731713388320,3.1909,219.37,219.31,9.03005689]
[1731713391219,8.77907689,219.39,219.31,13.58975689]
[1731713391916,8.77907689,219.39,219.31,4.81068]
[1731713392220,8.77907689,219.39,219.31,13.58975689]
[1731713392399,3.1908,219.38,219.31,13.58975689]
[1731713394923,8.77907689,219.41,219.35,0.12549]
[1731713395128,8.77907689,219.41,219.35,0.25098]
[1731713395695,8.77566289,219.41,219.35,0.12549]
[1731713396014,3.1905,219.4,219.35,0.25098]
[1731713396503,11.96616289,219.4,219.33,9.02664289]
[1731713397107,11.96616289,219.4,219.33,13.58594289]
[1731713399417,8.77566289,219.39,219.33,0.25098]
[1731713399614,8.77566289,219.39,219.32,0.25098]
[1731713399815,8.77566289,219.39,219.32,9.02664289]
[1731713400021,8.77566289,219.39,219.32,0.25098]
[1731713400233,8.77566289,219.39,219.32,9.02664289]
[1731713400402,8.77566289,219.38,219.32,0.25098]
[1731713400604,8.77566289,219.36,219.28,0.12549]
[1731713400830,8.77566289,219.36,219.29,23.776884]
[1731713401123,8.77566289,219.35,219.29,23.776884]
[1731713401328,3.1913,219.34,219.29,23.776884]
[1731713401619,11.96686289,219.36,219.28,23.776884]
[1731713401835,11.96686289,219.36,219.28,32.55254689]
[1731713402226,11.96686289,219.36,219.29,0.25098]
[1731713402414,8.77566289,219.35,219.29,0.25098]
[1731713402617,3.1912,219.36,219.24,70.0]
[1731713402618,8.77566289,219.31,219.24,8.77566289]
[1731713403317,11.96756289,219.31,219.24,8.77566289]
[1731713403518,11.96756289,219.31,219.24,13.33676289]
[1731713403729,11.96756289,219.31,219.25,0.25098]
[1731713405327,8.77566289,219.3,219.24,24.027864]
[1731713405716,8.77566289,219.3,219.24,32.80352689]
[1731713406224,7.9777,219.36,219.24,32.80352689]
[1731713406225,8.77566289,219.31,219.24,32.80352689]
[1731713406614,3.1919,219.3,219.24,32.80352689]
[1731713408529,3.1919,219.3,219.25,8.77566289]
[1731713408831,3.1919,219.3,219.26,0.25098]
[1731713409621,8.77566289,219.32,219.26,0.25098]
[1731713410317,8.77566289,219.32,219.26,8.77566289]
[1731713410631,8.77566289,219.32,219.25,9.02664289]
[1731713410832,3.1918,219.31,219.25,9.02664289]
[1731713411423,11.96746289,219.31,219.25,0.25098]
[1731713412635,7.9777,219.36,219.27,8.77566289]
[1731713412808,8.77566289,219.32,219.28,0.12549]
[1731713413235,8.77566289,219.31,219.24,0.12549]
[1731713413441,8.78448705,219.3,219.24,0.25098]
[1731713414942,3.1921,219.29,219.24,0.25098]
[1731713415740,3.1921,219.29,219.26,0.12549]
[1731713416322,8.78448705,219.33,219.27,0.12549]
[1731713416536,8.78448705,219.33,219.27,0.25098]
[1731713416929,3.1916,219.32,219.27,0.25098]
[1731713418214,7.9777,219.36,219.28,0.12549]
[1731713418415,8.78448705,219.33,219.28,0.12549]
[1731713418664,15.07509266,219.36,219.26,0.12549]
[1731713418665,8.78448705,219.32,219.26,0.12549]
[1731713419515,3.1918,219.31,219.26,0.12549]
[1731713420136,11.97628705,219.31,219.23,0.4344254]
[1731713420339,8.78448705,219.25,219.23,0.4344254]
[1731713420636,3.1918,219.31,219.23,0.4344254]
[1731713420637,8.78448705,219.24,219.23,0.4344254]
[1731713420817,28.78448705,219.24,219.23,0.4344254]
[1731713421532,90.98579387,219.24,219.23,0.4344254]
[1731713421835,90.98579387,219.24,219.06,20.19658705]
[1731713421836,43.97055862,219.23,219.06,20.19658705]
[1731713422036,43.97055862,219.23,219.06,20.21021424]
[1731713422037,8.79811424,219.13,219.06,20.21021424]
[1731713422216,8.79811424,219.13,219.01,52.21139836]
[1731713422217,8.79811424,219.13,219.02,4.5657]
[1731713422415,8.79811424,219.12,219.04,8.79811424]
[1731713422817,8.79811424,219.12,219.05,8.79811424]
[1731713423120,8.79811424,219.13,219.06,8.79811424]
[1731713423428,8.79811424,219.14,219.06,8.79811424]
[1731713423639,3.1944,219.13,219.06,8.79811424]
[1731713424017,3.1944,219.13,219.07,0.12549]
[1731713424730,3.1944,219.13,219.06,0.25098]
[1731713424731,8.79811424,219.13,219.06,0.25098]
[1731713425743,3.1945,219.12,219.06,0.25098]
[1731713426153,11.99261424,219.12,219.06,0.25098]
[1731713426842,3.1945,219.12,219.06,0.25098]
[1731713427342,3.1945,219.12,219.07,0.12549]
[1731713428126,8.79811424,219.13,219.07,0.12549]
[1731713428733,8.79811424,219.14,219.08,0.25098]
[1731713428930,8.79811424,219.15,219.08,8.92360424]
[1731713429127,8.79811424,219.15,219.09,0.12549]
[1731713429444,8.79811424,219.14,219.09,0.12549]
[1731713429941,3.1944,219.13,219.09,0.12549]
[1731713430123,3.1944,219.13,219.07,8.79811424]
[1731713430323,8.79811424,219.12,219.06,0.12549]
[1731713430631,8.79811424,219.12,219.06,0.25098]
[1731713431540,8.79811424,219.11,219.04,9.04909424]
[1731713431935,8.79811424,219.09,219.01,0.4344254]
[1731713432127,8.79811424,219.08,219.01,9.23253964]
[1731713432734,8.79811424,219.09,219.02,8.79811424]
[1731713433146,8.79811424,219.11,219.03,8.79811424]
[1731713433329,8.79811424,219.1,219.04,0.12549]
[1731713434125,8.79811424,219.1,219.03,8.79811424]
[1731713434126,8.79811424,219.09,219.02,0.25098]
[1731713434326,3.1951,219.08,219.02,9.04909424]
[1731713434543,3.1951,219.08,219.03,8.79811424]
[1731713434850,3.1951,219.08,219.04,0.12549]
[1731713435728,8.79811424,219.09,219.03,0.12549]
[1731713435945,8.79811424,219.07,219.01,0.4344254]
[1731713436128,8.79811424,219.07,219.02,0.12549]
[1731713437150,8.79811424,219.03,219.01,0.4344254]
[1731713437340,8.79811424,219.02,219.01,0.4344254]
[1731713437849,11.99411424,219.02,219.01,0.4344254]
[1731713441734,11.99411424,219.02,218.95,16.19129847]
[1731713441735,0.09367462,218.98,218.91,15.26456997]
[1731713441941,8.79811424,218.92,218.91,15.26456997]
[1731713442126,0.12549,219.0,218.91,15.26456997]
[1731713442127,79.16934096,219.01,218.91,15.26456997]
[1731713442329,8.79811424,218.93,218.91,15.26456997]
[1731713442940,13.77393408,218.92,218.91,15.26456997]
[1731713443859,16.97143408,218.92,218.91,15.26456997]
[1731713445748,3.1975,218.92,218.91,15.26456997]
[1731713446144,16.97143408,218.92,218.91,15.26456997]
[1731713447441,13.77393408,218.92,218.91,15.26456997]
[1731713447751,13.77393408,218.93,218.91,15.26456997]
[1731713447950,7.9919,218.98,218.91,15.26456997]
[1731713447951,13.77393408,218.94,218.91,15.26456997]
[1731713448265,13.77393408,218.95,218.91,15.26456997]
[1731713449058,13.77393408,218.98,218.92,0.12549]
[1731713449358,13.77393408,219.04,218.97,13.77393408]
[1731713450343,13.77393408,219.03,218.94,0.12549]
[1731713450553,13.77393408,219.04,218.97,13.77393408]
[1731713450758,3.1959,219.03,218.97,13.77393408]
[1731713451359,3.1959,219.03,219.01,13.77393408]
[1731713451751,3.1959,219.03,219.0,13.89942408]
[1731713452845,13.77393408,219.07,219.0,13.89942408]
[1731713453164,3.1954,219.06,219.0,13.89942408]
[1731713453365,3.1954,219.06,219.0,0.12549]
[1731713453543,13.77393408,219.05,219.0,0.12549]
[1731713453742,13.77393408,219.03,218.97,0.25098]
[1731713454559,13.77393408,219.03,218.97,0.12549]
[1731713454866,13.77393408,219.02,218.96,0.25098]
[1731713455860,3.1956,219.05,218.98,0.25098]
[1731713455861,13.77393408,219.04,218.98,0.25098]
[1731713456244,3.1956,219.05,218.98,0.25098]
[1731713456245,16.96953408,219.05,218.98,0.25098]
[1731713456644,16.96953408,219.05,218.98,13.77393408]
[1731713456847,3.1956,219.05,218.99,13.77393408]
[1731713457346,3.1948,219.1,219.04,13.77393408]
[1731713457556,3.1948,219.1,219.07,13.77393408]
[1731713457759,7.9835,219.21,219.1,0.21916462]
[1731713457952,13.77393408,219.2,219.12,13.77393408]
[1731713458268,13.77393408,219.13,219.06,0.12549]
[1731713458465,13.77393408,219.11,219.06,0.12549]
[1731713459170,3.1948,219.1,219.06,0.12549]
[1731713459866,13.77393408,219.09,219.03,0.12549]
[1731713460071,13.77393408,219.09,219.03,0.25098]
[1731713460267,13.77393408,219.08,219.02,24.12153862]
[1731713460447,13.77393408,219.07,219.02,24.12153862]
[1731713460873,13.77393408,219.03,218.94,11.4182]
[1731713461050,13.77393408,219.02,218.94,25.19213408]
[1731713462152,13.77393408,219.01,218.95,0.09367462]
[1731713462556,13.77393408,219.01,218.97,0.09367462]
[1731713463069,13.77393408,219.01,218.97,0.21916462]
[1731713463255,13.77393408,219.01,218.98,0.12549]
[1731713463450,13.77393408,219.01,218.97,0.12549]
[1731713463451,13.77393408,219.01,218.97,0.21916462]
[1731713463775,13.77393408,219.01,218.97,0.09367462]
[1731713463955,13.77393408,219.01,218.98,0.12549]
[1731713464159,13.77393408,219.01,218.97,0.12549]
[1731713464854,13.77393408,219.01,218.97,0.21916462]
[1731713465252,13.77393408,219.01,218.97,0.12549]
[1731713465783,13.77393408,219.01,218.98,0.12549]
[1731713466072,13.77393408,219.01,218.98,0.25098]
[1731713466372,16.97003408,219.02,218.98,0.25098]
[1731713466561,13.77393408,219.01,218.98,0.25098]
[1731713466873,13.77393408,219.0,218.98,0.25098]
[1731713467252,16.97023408,219.0,218.98,0.25098]
[1731713467763,3.1963,219.0,218.98,0.25098]
[1731713469346,13.77393408,219.01,218.98,0.25098]
[1731713469549,16.97013408,219.01,218.98,0.25098]
[1731713469746,13.77393408,219.0,218.98,0.25098]
[1731713470376,13.77393408,218.99,218.97,0.09367462]
[1731713470665,3.1962,219.01,218.97,0.09367462]
[1731713470666,13.77393408,218.98,218.97,0.09367462]
[1731713471275,16.97053408,218.98,218.97,0.09367462]
[1731713472564,36.97053408,218.98,218.97,0.09367462]
[1731713478091,23.1966,218.98,218.97,0.09367462]
[1731713478389,36.97053408,218.98,218.97,0.09367462]
[1731713479674,36.97053408,218.98,218.97,7.462e-05]
[1731713479970,43.97055862,218.97,218.91,15.26456997]
[1731713480167,47.54786816,218.92,218.91,15.26456997]
[1731713480370,33.77393408,218.92,218.91,15.26456997]
[1731713481598,36.97143408,218.92,218.91,15.26456997]
[1731713485178,23.1975,218.92,218.91,15.26456997]
[1731713485377,36.97143408,218.92,218.91,15.26456997]
[1731713485863,36.97143408,218.92,218.91,15.39005997]
[1731713486266,36.97143408,218.92,218.91,15.26456997]
[1731713488078,16.97143408,218.92,218.91,15.39005997]
[1731713488284,3.1975,218.92,218.91,15.39005997]
[1731713489379,13.77393408,218.92,218.91,15.39005997]
[1731713491294,16.97143408,218.92,218.91,15.39005997]
[1731713491667,16.97143408,218.92,218.91,15.26456997]
[1731713491973,36.97143408,218.92,218.91,15.26456997]
[1731713495496,20.0,218.91,218.81,0.09367462]
[1731713495692,13.77393408,218.84,218.81,0.09367462]
[1731713496393,16.97263408,218.84,218.81,0.09367462]
[1731713498176,13.77393408,218.83,218.81,0.09367462]
[1731713498376,13.77393408,218.82,218.81,0.09367462]
[1731713499996,13.77393408,218.85,218.81,0.21916462]
[1731713500185,13.77393408,218.86,218.82,0.12549]
[1731713501377,13.77393408,218.83,218.81,0.09367462]
[1731713502272,3.1989,218.82,218.81,0.09367462]
[1731713503081,16.97283408,218.82,218.81,0.09367462]
[1731713506394,60.8433927,218.82,218.81,0.09367462]
[1731713506599,20.0,218.81,218.79,0.4344254]
[1731713506904,28.82542448,218.8,218.79,0.4344254]
[1731713508288,32.02462448,218.8,218.79,0.5599154]
[1731713508888,35.40169792,218.9,218.79,0.5599154]
[1731713508889,35.30169792,218.9,218.8,0.12549]
[1731713509201,8.82542448,218.85,218.8,0.12549]
[1731713509911,8.82542448,218.84,218.8,0.12549]
[1731713510088,3.1988,218.83,218.8,0.12549]
[1731713510789,3.1987,218.84,218.8,0.12549]
[1731713512285,3.1984,218.86,218.8,14.03248206]
[1731713513703,3.1981,218.88,218.82,0.25098]
[1731713513906,3.1981,218.88,218.83,13.78150206]
[1731713514103,13.78150206,218.9,218.83,13.78150206]
[1731713514104,16.97930206,218.9,218.84,0.25098]
[1731713515020,20.0,218.89,218.84,0.25098]
[1731713515314,23.198,218.89,218.84,0.25098]
[1731713515710,3.198,218.89,218.84,14.03248206]
[1731713516108,13.78150206,218.94,218.87,14.03248206]
[1731713516310,13.78150206,218.94,218.87,13.78150206]
[1731713516704,3.197,218.95,218.9,0.12549]
[1731713517306,173.98150206,218.99,218.92,0.25098]
[1731713517506,3.1968,218.97,218.92,0.25098]
[1731713519607,3.1968,218.97,218.89,24.12153862]
[1731713519803,3.1968,218.97,218.92,0.25098]
[1731713520511,20.0,218.96,218.92,0.25098]
[1731713520711,163.3968,218.97,218.96,0.25098]
[1731713520712,160.2,218.97,218.96,0.25098]
[1731713520924,163.3962,219.01,218.96,0.25098]
[1731713521107,13.78150206,219.0,218.96,0.25098]
[1731713521302,163.3962,219.01,218.96,0.25098]
[1731713521917,177.17770206,219.01,218.96,0.25098]
[1731713523127,13.78150206,219.0,218.96,0.25098]
[1731713523629,13.78150206,218.98,218.9,13.78150206]
[1731713523925,160.2,218.97,218.91,13.87517668]
[1731713524131,160.2,218.97,218.93,13.78150206]
[1731713524332,160.2,218.97,218.92,13.78150206]
[1731713524525,160.2,218.97,218.91,13.78150206]
[1731713524728,163.3968,218.97,218.91,0.09367462]
[1731713524917,163.3968,218.97,218.91,0.34465462]
[1731713525118,177.17830206,218.97,218.91,0.34465462]
[1731713525430,16.97830206,218.97,218.91,0.34465462]
[1731713526022,13.78150206,218.96,218.89,0.25098]
[1731713526236,3.197,218.95,218.89,0.25098]
[1731713526634,16.97850206,218.95,218.87,13.78150206]
[1731713526819,13.78150206,218.93,218.86,13.78150206]
[1731713527020,13.78150206,218.93,218.85,18.35070206]
[1731713527845,13.78150206,218.9,218.84,11.4238]
[1731713528337,13.78150206,218.9,218.85,23.776884]
[1731713528546,13.78150206,218.89,218.82,18.35120206]
[1731713528835,3.1978,218.9,218.8,15.996]
[1731713528836,13.78150206,218.86,218.8,15.996]
[1731713529011,13.78150206,218.86,218.8,11.4258]
[1731713529216,13.78150206,218.87,218.8,29.77760206]
[1731713529434,13.78150206,218.89,218.81,13.78150206]
[1731713529637,13.78150206,218.9,218.83,13.78150206]
[1731713529817,3.1976,218.92,218.85,13.78150206]
[1731713530344,13.78150206,218.9,218.85,0.34465462]
[1731713530516,13.78150206,218.89,218.85,0.25098]
[1731713531715,16.97950206,218.89,218.85,0.25098]
[1731713532338,3.198,218.89,218.85,0.25098]
[1731713532511,7.9923,218.96,218.85,0.25098]
[1731713532512,13.78150206,218.91,218.85,0.25098]
[1731713532714,13.78150206,218.92,218.85,14.03248206]
[1731713533516,16.97930206,218.9,218.85,0.25098]
[1731713533717,13.78150206,218.89,218.85,0.25098]
[1731713535320,13.78150206,218.91,218.85,0.25098]
[1731713535637,13.78150206,218.91,218.85,28.597064]
[1731713535841,13.78150206,218.91,218.85,0.25098]
[1731713536030,13.78150206,218.9,218.85,0.25098]
[1731713537217,20.0,218.94,218.87,0.25098]
[1731713537426,13.78150206,218.91,218.87,0.25098]
[1731713537648,13.78150206,218.91,218.87,0.12549]
[1731713537830,13.78150206,218.9,218.87,0.12549]
[1731713538847,8.81614488,218.9,218.87,0.12549]
[1731713539217,3.1979,218.89,218.87,0.12549]
[1731713540025,3.1973,218.93,218.87,8.81614488]
[1731713540221,3.1973,218.93,218.88,0.25098]
[1731713540939,3.1964,218.99,218.92,32.9376835]
[1731713541151,12.01214488,219.03,218.97,0.12549]
[1731713541317,3.196,219.03,218.97,0.25098]
[1731713541744,7.13765809,219.05,218.99,8.94163488]
[1731713541745,3.1957,219.05,218.99,8.94163488]
[1731713541923,3.1957,219.05,219.0,0.12549]
[1731713542829,16.94906336,219.07,218.99,14.00474336]
[1731713543341,13.75376336,219.06,218.99,0.25098]
[1731713543546,3.1953,219.07,219.01,14.00474336]
[1731713543720,7.13765809,219.1,219.04,0.21916462]
[1731713543925,3.1945,219.13,219.07,0.25098]
[1731713544229,3.1942,219.15,219.1,0.25098]
[1731713544425,13.75376336,219.14,219.1,0.25098]
[1731713544831,13.75376336,219.14,219.08,0.34465462]
[1731713545023,3.1935,219.19,219.12,0.09367462]
[1731713545228,16.94666336,219.23,219.15,14.00474336]
[1731713545528,16.94666336,219.23,219.16,0.21916462]
[1731713545730,16.94666336,219.23,219.17,0.25098]
[1731713546041,13.75376336,219.19,219.15,0.12549]
[1731713546261,3.1929,219.23,219.15,0.12549]
[1731713546262,13.75376336,219.17,219.15,0.12549]
[1731713546739,13.75376336,219.2,219.16,0.12549]
[1731713546938,13.75376336,219.22,219.17,0.12549]
[1731713547126,16.94666336,219.23,219.17,0.12549]
[1731713547530,13.75376336,219.22,219.17,0.12549]
[1731713547736,13.75376336,219.2,219.17,0.12549]
[1731713548238,13.75376336,219.22,219.17,0.12549]
[1731713548436,13.75376336,219.22,219.15,0.34465462]
[1731713549129,13.75376336,219.2,219.15,0.34465462]
[1731713549354,13.75376336,219.2,219.12,13.75376336]
[1731713549647,13.75376336,219.2,219.14,0.09367462]
[1731713550729,13.75376336,219.2,219.14,0.34465462]
[1731713551352,13.75376336,219.2,219.14,24.12153862]
[1731713551854,13.75376336,219.2,219.14,0.34465462]
[1731713554654,13.75376336,219.15,219.06,11.4121]
[1731713554863,13.75376336,219.14,219.06,13.75376336]
[1731713555030,3.1935,219.2,219.06,13.75376336]
[1731713555031,13.75376336,219.16,219.09,0.09367462]
[1731713555437,16.94776336,219.16,219.08,13.75376336]
[1731713555844,16.94776336,219.16,219.09,0.09367462]
[1731713556151,16.94776336,219.16,219.1,0.12549]
[1731713557149,16.94776336,219.16,219.1,0.25098]
[1731713557858,13.75376336,219.14,219.1,0.12549]
[1731713558035,13.75376336,219.12,219.1,0.12549]
[1731713558439,13.75376336,219.11,219.05,11.4129]
[1731713558633,13.75376336,219.11,219.02,4.5656]
[1731713558634,13.75376336,219.09,219.02,4.5656]
[1731713558851,13.75376336,219.09,219.03,0.09367462]
[1731713559247,13.75376336,219.09,219.02,15.98]
[1731713559861,13.75376336,219.09,219.03,0.09367462]
[1731713560843,13.75376336,219.09,219.04,0.12549]
[1731713561356,23.194,219.16,219.04,4.5652]
[1731713561553,13.75376336,219.12,219.05,13.87925336]
[1731713562058,15.9669,219.21,219.07,13.75376336]
[1731713562059,3.1932,219.21,219.07,13.75376336]
[1731713562246,13.75376336,219.17,219.09,13.75376336]
[1731713563055,13.75376336,219.19,219.11,13.75376336]
[1731713563563,3.1918,219.31,219.13,13.87925336]
[1731713563735,3.1918,219.31,219.16,13.75376336]
[1731713563940,13.75376336,219.25,219.16,13.75376336]
[1731713564156,13.75376336,219.21,219.14,13.75376336]
[1731713564655,13.75376336,219.19,219.12,29.72666336]
[1731713564862,11.2713,219.31,219.12,29.72666336]
[1731713564863,13.75376336,219.2,219.12,29.82666336]
[1731713565061,13.75376336,219.21,219.13,13.75376336]
[1731713565262,13.75376336,219.24,219.16,13.75376336]
[1731713565563,3.1925,219.27,219.18,13.75376336]
[1731713565861,13.75376336,219.3,219.22,13.75376336]
[1731713566068,13.75376336,219.27,219.19,13.75376336]
[1731713566244,13.75376336,219.25,219.18,13.75376336]
[1731713566438,13.75376336,219.24,219.17,29.72296336]
[1731713566947,13.75376336,219.25,219.18,13.75376336]